Cogmind - Beta 16 @@@ ROGUE MODE // 2025.12.02 @ 00:46:48 Player: GGOBC-006 Result: Destroyed by AM-LH8(j) with Overtuned Pulse Rifle Performance ------------- Evolutions (0) 0 Regions Visited (3) 600 Robots Destroyed (37) 185 Value Destroyed (949) 949 Prototype IDs (13) 260 Alien Tech Used (0) 0 Bonus (800) 800 TOTAL SCORE: 2794 Bonus ------- Registered with UFD 300 Met Optimus in HQ 500 Cogmind --------- Core Integrity 0/250 Matter 281/300 Energy 95/290 System Corruption 0% Temperature Cool (39) Movement Walking (120) Location -9/Scraptown Parts ------- > --- POWER (1) -------- Improved Deuterium Engine > --- PROPULSION (2) --- Overtuned Titanium Leg Myomer Leg > --- UTILITY (2) ------ Core Analyzer Improved Shield Generator > --- WEAPON (2) ------- Enhanced Autogun > --- INVENTORY (5) ---- Scrap Suit Cooling System Improved EM Pulse Cannon Gauss Cannon Peak State ------------ > --- POWER ------------ Improved Deuterium Engine > --- PROPULSION ------- Overtuned Titanium Leg Myomer Leg > --- UTILITY ---------- Core Analyzer Improved Shield Generator > --- WEAPON ----------- Enhanced Autogun EMP Blaster > --- INVENTORY -------- Scrap Suit Cooling System Improved EM Pulse Cannon Gauss Cannon [Rating: 29] Favorites ----------- Power Ion Engine Engine Ion Engine Propulsion Aluminum Leg Treads Spiked Treads Leg Aluminum Leg Wheel Wheel Utility Disposable Heat Sink Device Disposable Heat Sink Processor Targeting Computer Protection Scrap Shield Weapon Flail Energy Gun Beamcaster Energy Cannon Subdweller Beam Cannon Ballistic Gun Assault Rifle Launcher EMP Blaster Impact Weapon Flail Build | -11 -10 -10 -9 ------- Run | Yrd Mat Sub Scr Slots Evolved . | . . . . Power . | . . . . Propulsion . | . . . . Utility . | . . . . Weapon . | . . . . Parts Attached 59 | 8 11 20 20 Power 9 | 2 . 3 4 Engine 9 | 2 . 3 4 Core . | . . . . Reactor . | . . . . Propulsion 16 | 2 2 7 5 Treads 1 | . . 1 . Leg 12 | 2 2 3 5 Wheel 3 | . . 3 . Hover . | . . . . Flight . | . . . . Utility 18 | 2 3 6 7 Device 10 | 2 . 3 5 Storage . | . . . . Processor 3 | . 1 . 2 Hackware . | . . . . Protection 5 | . 2 3 . Artifact . | . . . . Weapon 16 | 2 6 4 4 Energy Gun 3 | 1 . 2 . Energy Cannon 5 | . 2 1 2 Ballistic Gun 5 | 1 2 1 1 Ballistic Cannon . | . . . . Launcher 1 | . . . 1 Special Weapon . | . . . . Impact Weapon 2 | . 2 . . Slashing Weapon . | . . . . Piercing Weapon . | . . . . Special Melee Weapon . | . . . . Unidentified Prototypes 1 | . . . 1 Parts Lost 10 | . 1 8 1 Power . | . . . . Propulsion 4 | . . 4 . Utility 4 | . 1 3 . Weapon 2 | . . 1 1 Highest Loss Streak 6 | . 1 6 1 To Critical Strikes . | . . . . Average Backups 4 | 2 4 3 4 Power . | . 1 . . Propulsion . | 1 2 . . Utility 1 | . 1 . 1 Weapon 1 | . . 1 2 Tool/Special . | . . . . Unused Backups 8 | . 2 2 4 Power . | . . . . Propulsion 2 | . 2 . . Utility 4 | . . 2 2 Weapon 2 | . . . 2 Tool/Special . | . . . . Average Slot Usage (%) 84 | . 93 81 77 Engine 13 | . 14 13 14 Treads 5 | . . 2 12 Leg 19 | . 27 14 15 Device 12 | . 9 12 16 Processor 3 | . 9 . 1 Protection 4 | . 3 7 2 Energy Gun 1 | . . 3 . Energy Cannon 7 | . 1 11 11 Ballistic Gun 7 | . 17 3 . Impact Weapon 6 | . 8 8 1 Peak Build Rating 29 | 9 10 27 29 Average Rating 14 | 6 8 18 19 On Entrance 9 | . 9 10 19 Avg Prop Armor Cover (%) 11 | . . 3 12 Naked Turns . | . . . . Heaviest Build 33 | 10 20 33 31 Greatest Support 50 | 20 20 50 44 Greatest Overweight (x) 4 | 1 1 4 1 Average Overweight (x) . | . . . . Largest Inventory Capacity 5 | 5 5 5 5 Average Capacity 5 | 5 5 5 5 Most Carried 5 | 5 5 5 5 Average Carried 4 | 2 4 3 4 Final Capacity 5 | 5 5 5 5 Final Carried 5 | 5 5 4 5 Class Distribution -------------------- 74% | Mutant 14% | Scavenger-Mutant 11% | Subdweller-Mutant Dominant Class ---------------- Mutant | -10/Materials Scavenger-Mutant | -10/Subcaves Mutant | -9/Scraptown Resources | -11 -10 -10 -9 ----------- Run | Yrd Mat Sub Scr Matter Collected 1218 | 299 334 345 240 Remotely . | . . . . Salvage Created 1105 | 194 479 393 39 Parts 51 | 15 19 16 1 Haulers Intercepted . | . . . . Recyclers Shooed . | . . . . Parts Field Recycled . | . . . . Retrieved Matter . | . . . . Parts Self-Destructed 1 | . . . 1 Prevented . | . . . . Parts Restored . | . . . . Kills | -11 -10 -10 -9 ------- Run | Yrd Mat Sub Scr Combat Hostiles Destroyed 23 | . 11 11 1 Melee 8 | . 4 3 1 Guns 6 | . 4 2 . Cannons 1 | . . 1 . Classes Destroyed 10 | 3 5 1 1 Worker 3 | 2 1 . . Tunneler 5 | 4 1 . . Recycler 2 | 1 1 . . Mechanic 1 | . 1 . . Operator 1 | . 1 . . Watcher 2 | . 2 . . Swarmer 3 | . 3 . . Grunt 8 | . 8 . . Subdweller 11 | . . 11 . Explorer 1 | . . . 1 Best Kill Streak 4 | 3 4 3 1 Combat Bots Only 3 | . 3 3 1 Max Kills in Single Turn 1 | 1 1 1 1 Gunslinging . | . . . . Exploded . | . . . . Melee 1 | . 1 1 1 Uniques/NPCs Destroyed . | . . . . Combat | -11 -10 -10 -9 -------- Run | Yrd Mat Sub Scr Hostile Shots Fired 172 | . 56 100 16 Missed 67 | . 24 39 4 Hits 105 | . 32 61 12 Projectile 105 | . 32 61 12 AOE 1 | . . 1 . Critical Strikes 1 | . 1 . . Damage Taken 1768 | . 389 1241 138 Core 259 | . 64 166 29 Absorbed by Shields 51 | . . . 51 Regen/Repaired (Parts) 167 | . . . 167 Core Remaining (%) 100 | 100 . . . Volleys Fired 122 | 19 62 35 6 Largest 2 | 2 2 2 1 Hottest 155 | 70 40 155 33 Shots Fired 195 | 38 105 46 6 Gun 174 | 38 105 27 4 Cannon 19 | . . 19 . Launcher 2 | . . . 2 Special . | . . . . Kinetic 148 | 19 105 20 4 Thermal 27 | 19 . 8 . Explosive . | . . . . Electromagnetic 20 | . . 18 2 Robot Hit Streak 23 | 9 7 23 2 Robot Miss Streak 5 | 3 5 2 1 Penetration Max . | . . . . Secondary Targets 2 | . 2 . . Max Gunslinging Chain 1 | . 1 . . Shots Hit Robots 122 | 23 36 61 2 Core Hits 36 | 11 12 12 1 Critical Kills 1 | . 1 . . Critical Parts Destroyed 11 | . 5 6 . Critical Strikes 13 | . 6 7 . Smash 13 | . 6 7 . Melee Attacks 99 | . 26 71 2 Impact 99 | . 26 71 2 Slashing . | . . . . Piercing . | . . . . Sneak Attacks 5 | . 4 . 1 Combat Hostiles 1 | . . . 1 Follow-up Attacks . | . . . . Damage Inflicted 2903 | 225 1026 1592 60 Guns 800 | 225 224 351 . Cannons 337 | . . 337 . Explosions 47 | . . . 47 Melee 1719 | . 802 904 13 Ramming . | . . . . Kinetic 578 | 87 224 267 . Thermal 222 | 138 . 84 . Explosive . | . . . . Electromagnetic 384 | . . 337 47 Impact 1719 | . 802 904 13 Slashing . | . . . . Piercing . | . . . . Highest Corruption . | . . . . Average Corruption . | . . . . Corruption Purged . | . . . . Corruption Blocked . | . . . . Overload Shots . | . . . . Overflow Damage 627 | . 430 197 . Projectiles . | . . . . Explosions . | . . . . Melee 627 | . 430 197 . Knockbacks 11 | . 6 5 . Impact 11 | . 6 5 . Kinetic . | . . . . Secondary . | . . . . Self-Inflicted Damage 28 | . . . 28 Shots 2 | . . . 2 Rammed . | . . . . Targets Rammed . | . . . . Kicked . | . . . . Crushed . | . . . . Highest Temperature 160 | 160 20 24 30 Average Temperature 40 | 59 8 9 13 Received Heat Transfer 468 | . 156 270 42 Siege Activations . | . . . . Martial Activations . | . . . . Shielding Activations . | . . . . Robots Disrupted . | . . . . Combat Hostiles . | . . . . Robots Corrupted 10 | . 5 5 . Combat Hostiles 8 | . 3 5 . Parts Fried 11 | . 6 5 . Impact Corruptions 24 | . 15 9 . Robots Melted . | . . . . Combat Hostiles . | . . . . Parts Melted . | . . . . Heat Transferred 555 | 407 . 148 . Parts Sabotaged . | . . . . Parts Stolen . | . . . . Parts Stripped . | . . . . Power Chain Reactions . | . . . . Alert | -11 -10 -10 -9 ------- Run | Yrd Mat Sub Scr Maximum Alert Level . | . . . . Low Security (%) 100 | 100 100 . . Level 1 . | . . . . Level 2 . | . . . . Level 3 . | . . . . Level 4 . | . . . . Level 5 . | . . . . High Security . | . . . . Max Security . | . . . . Peak Influence 131 | 10 131 . . Initial . | . . . . Average 30 | 1 32 . . Influence Increases 439 | 35 404 . . Destroy 0b10 Robot/C 220 | . 220 . . Destroy 0b10 Robot/NC 70 | 35 35 . . Destroy Leader 44 | . 44 . . Successful Hack 29 | . 29 . . Disable Machine 45 | . 45 . . Destroy Structure 1 | . 1 . . Lose Combat Pursuer 30 | . 30 . . Influence Decreases 439 | 35 350 54 . Entered New Map 26 | . . 26 . Time Decay 379 | 35 316 28 . Lost Part 10 | . 10 . . Purge Threat 24 | . 24 . . Squads Dispatched 3 | . 3 . . Investigation 2 | . 2 . . Extermination . | . . . . Reinforcement 1 | . 1 . . Assault . | . . . . Garrison . | . . . . Intercept . | . . . . Searches Triggered . | . . . . Construction Impeded . | . . . . Haulers Reinforced . | . . . . Active Scanning Responses . | . . . . Cargo Convoy Interrupts . | . . . . Stealth | -11 -10 -10 -9 --------- Run | Yrd Mat Sub Scr Distress Signals 1 | . 1 . . Communications Jammed . | . . . . Distress Signals . | . . . . Times Spotted 50 | . 18 20 12 Peak Tracking Total 11 | . 3 11 6 Tactical Retreats 4 | . 2 2 . Traps | -11 -10 -10 -9 ------- Run | Yrd Mat Sub Scr Traps Triggered 3 | . 3 . . Indirectly . | . . . . Trap Hack Attempts . | . . . . Triggered . | . . . . Disarmed . | . . . . Reprogrammed . | . . . . Reused . | . . . . Traps Extracted . | . . . . Installed . | . . . . Triggered . | . . . . Machines | -11 -10 -10 -9 ---------- Run | Yrd Mat Sub Scr Machines Disabled 3 | . 3 . . Max in Single Turn 1 | . 1 . . Machines Repaired . | . . . . Machines Dismantled . | . . . . Machines Sabotaged . | . . . . Overloaded Fab Kills . | . . . . Hacking | -11 -10 -10 -9 --------- Run | Yrd Mat Sub Scr Machines Accessed 18 | . 7 . 11 Terminals 7 | . 7 . . Fabricators . | . . . . Repair Stations . | . . . . Recycling Units . | . . . . Scanalyzers . | . . . . Garrison Access . | . . . . Total Hacks 117 | . 28 . 89 Successful 106 | . 17 . 89 Failed 11 | . 11 . . Catastrophic 1 | . 1 . . Database Lockouts . | . . . . Manual 39 | . 31 . 8 Terminals 28 | . 28 . . Fabricators . | . . . . Repair Stations . | . . . . Recycling Units . | . . . . Scanalyzers . | . . . . Garrison Access . | . . . . Terminal Hacks 93 | . 4 . 89 Record 88 | . . . 88 Level Access Points 2 | . 2 . . Unreport Threat 1 | . 1 . . Maintenance Status 1 | . 1 . . Proto ID Catalog 1 | . . . 1 Fabricator Hacks . | . . . . Repair Station Hacks . | . . . . Recycling Unit Hacks . | . . . . Scanalyzer . | . . . . Garrison Access Hacks . | . . . . Unauthorized Hacks 13 | . 13 . . Terminals 13 | . 13 . . Track 1 | . 1 . . Assimilate 4 | . 4 . . Botnet 7 | . 7 . . Operators 1 | . 1 . . Fabricators . | . . . . Repair Stations . | . . . . Recycling Units . | . . . . Scanalyzers . | . . . . Garrison Access . | . . . . Data Cores Recovered . | . . . . Used . | . . . . Hacking Detections 7 | . 7 . . Full Trace Events 1 | . 1 . . Feedback Events . | . . . . Feedback Blocked . | . . . . Robot Schematics Acquired . | . . . . Robots Built . | . . . . Authchips . | . . . . Time . | . . . . Total Robot Build Rating . | . . . . Part Schematics Acquired . | . . . . Parts Built . | . . . . Authchips . | . . . . Time . | . . . . Total Part Build Rating . | . . . . Part Studies Acquired . | . . . . Parts Repaired . | . . . . Time . | . . . . Parts Recycled . | . . . . Recycled Matter . | . . . . Retrieved Matter . | . . . . Retrieved Components . | . . . . Parts Scanalyzed . | . . . . Part Schematics Acquired . | . . . . Parts Damaged . | . . . . Bothacking | -11 -10 -10 -9 ------------ Run | Yrd Mat Sub Scr Used RIF Installer . | . . . . Robots Hacked . | . . . . Non-combat . | . . . . Combat . | . . . . Robot Hacks Applied . | . . . . Relay Couplers Released . | . . . . Fabnet Peak Effective % . | . . . . Robots Rewired . | . . . . Allies Hacked . | . . . . Hacks Repelled . | . . . . Allies | -11 -10 -10 -9 -------- Run | Yrd Mat Sub Scr Total Allies 1 | . . . 1 Largest Group 1 | . . . 1 Highest-Rated Group 34 | . . . 34 Highest-Rated Ally 34 | . . . 34 Total Orders . | . . . . Ally Attacks . | . . . . Total Damage . | . . . . Kills . | . . . . Allies Corrupted . | . . . . Allies Melted 6 | . . . 6 Intel | -11 -10 -10 -9 ------- Run | Yrd Mat Sub Scr Active Infowar (turns) 1023 | 91 800 131 1 Optics 131 | . . 131 . Terrain 786 | 91 695 . . Structural 1 | . . . 1 Seismic 858 | 58 800 . . Robot Analysis Total . | . . . . Derelict Logs Recovered 2 | . . . 2 Drone Launches . | . . . . Drone Recoveries . | . . . . Exploration | -11 -10 -10 -9 ------------- Run | Yrd Mat Sub Scr Turns Passed 6627 | 182 2316 1813 2316 Spaces Moved 3507 | 98 638 956 1815 Core 22 | 9 . 13 . Treads 123 | . . 123 . Legs 3277 | 89 638 735 1815 Wheels 85 | . . 85 . Hover . | . . . . Flight . | . . . . Fastest Speed 50 | 50 120 95 105 Average Speed 128 | 116 120 150 119 Slowest Speed 260 | 120 190 260 190 Overloaded Moves . | . . . . Propulsion Burnouts . | . . . . Robots Hopped . | . . . . Potential Cave-ins . | . . . . Cave-ins Triggered . | . . . . Exploration Rate (%) 50 | 5 79 30 86 Regions Visited 3 Branch Regions 2 Pre-discovered Areas 4 | . . . 4 Known Exits Taken . | . . . . Unknown Exits Taken 3 | 1 1 1 . Scrap Searched 4 | . . 4 . Spaces Dug 18 | . . 17 1 Terrain Destroyed 19 | . . 18 1 Melee 18 | . . 17 1 Projectile 1 | . . 1 . AOE . | . . . . Terrain Rammed . | . . . . Walls Destroyed . | . . . . Machines Disabled . | . . . . Actions | -11 -10 -10 -9 --------- Run | Yrd Mat Sub Scr Total 5325 | 128 2053 1181 1963 Wait 1418 | . 1290 48 80 Move 3504 | 97 637 955 1815 Hop . | . . . . Pick Up 33 | 4 7 15 7 Fast Attach 40 | 7 6 14 13 Attach 10 | . 1 7 2 Detach 8 | . . 3 5 Swap 25 | 1 10 6 8 Drop 65 | . 14 27 24 Fire 122 | 19 62 35 6 Melee 99 | . 26 71 2 Ram . | . . . . Kick . | . . . . Crush . | . . . . Escape Stasis . | . . . . Rewire 1 | . . . 1 Trap . | . . . . Miscellaneous . | . . . . Route ------- -11/Scrapyard -10/Materials (discovered 6 exits: *Mat x3 / [*Min x2] / [*Sub]) -10/Subcaves (discovered 2 exits: [*Mat] / *Scr) -9/Scraptown (discovered 2 exits: *Fac x2) History --------- Turn | Location | Event 16 | -11/Scrapyard | Discovered new exit (range 16) 183 | -11/Scrapyard | Entered Materials 315 | -10/Materials | Build established: Mutant 835 | -10/Materials | Discovered new exit (range 15) 837 | -10/Materials | Identified exit to Materials 2366 | -10/Materials | Discovered new exit (range 12) 2485 | -10/Materials | Discovered new exit (range 5) 2499 | -10/Materials | Entered Subcaves 2500 | -10/Subcaves | Approached by a straggling Scientist 2607 | -10/Subcaves | Ambushed by swarm of Subdwellers 2609 | -10/Subcaves | Ambushed by Subdwellers from Twisted Machinery 2609 | -10/Subcaves | Ambushed by Subdwellers from Twisted Machinery 2609 | -10/Subcaves | Ambushed by Subdwellers from Twisted Machinery 2609 | -10/Subcaves | Ambushed by Subdwellers from Twisted Machinery 2609 | -10/Subcaves | Ambushed by Subdwellers from Twisted Machinery 2659 | -10/Subcaves | Lost 4 allies 2700 | -10/Subcaves | Lost 6 parts (2n3u1w) 2846 | -10/Subcaves | Core integrity fell below 50% 3021 | -10/Subcaves | Build established: Scavenger-Mutant 3092 | -10/Subcaves | Scientist uncovered a shortcut to Scraptown 3144 | -10/Subcaves | Shifting Twisted Machinery released Sub. Beam Cannon 3145 | -10/Subcaves | Shifting Twisted Machinery released Sub. Monowheel 3438 | -10/Subcaves | Discovered new exit (range 15) 3452 | -10/Subcaves | A swath of the cavern ceiling suddenly collapsed 3470 | -10/Subcaves | Core integrity fell below 20% 3563 | -10/Subcaves | Shifting Twisted Machinery released Sub. Machine Gun 3574 | -10/Subcaves | Shifting Twisted Machinery released Scrap Shield 3898 | -10/Subcaves | Build established: Subdweller-Mutant 4312 | -10/Subcaves | Entered Scraptown 4524 | -9/Scraptown | Visited UFD Registry 4524 | -9/Scraptown | Registered with UFD as "Longstep" 4555 | -9/Scraptown | Visited CR-KLE's Repair Center 4564 | -9/Scraptown | CR-KLE repaired 2 parts 4602 | -9/Scraptown | Build established: Mutant 4618 | -9/Scraptown | Visited Cave Peace 4654 | -9/Scraptown | Visited Shadow of the Wyrm 4717 | -9/Scraptown | Visited Junk Repository 4904 | -9/Scraptown | Discovered new exit (range 5) 4946 | -9/Scraptown | Scanned Subdweller tech in exchange for log data 4948 | -9/Scraptown | Learned location of 1 exit from Research 4949 | -9/Scraptown | Learned Research trap positions 5003 | -9/Scraptown | Guru changed UFD alias to "Chainmod" 5097 | -9/Scraptown | Visited Bundlers 5652 | -9/Scraptown | Visited Supply Room 5698 | -9/Scraptown | Visited Cyclists 5714 | -9/Scraptown | Entered Cyclist Reading Room 5861 | -9/Scraptown | Visited Botcube Research 5874 | -9/Scraptown | Found Lrg. Botcube 5877 | -9/Scraptown | Lrg. Botcube activated 5881 | -9/Scraptown | Lrg. Botcube completed mutation into core form (unarmed). 5914 | -9/Scraptown | Visited LU-1G1's Boring Crew 5986 | -9/Scraptown | Visited Abandonware Association 6004 | -9/Scraptown | Learned abandonware demo "KABOOM.EXE" 6037 | -9/Scraptown | Visited Science Guys 6120 | -9/Scraptown | Met Optimus 6120 | -9/Scraptown | Accepted into 0bPrime 6197 | -9/Scraptown | Visited Infowarlord's Domain 6231 | -9/Scraptown | Visited Research Penetration Think Tank 6257 | -9/Scraptown | Visited Cartography Club 6287 | -9/Scraptown | Found Surveybot 17 Chip 6302 | -9/Scraptown | Civil war broke out across Scraptown 6316 | -9/Scraptown | Learned location of Proximity Caves (-3) 6316 | -9/Scraptown | Learned location of Extension (-5) 6316 | -9/Scraptown | Learned location of Armory (-4) 6316 | -9/Scraptown | Learned 8 Factory zone layouts 6316 | -9/Scraptown | Learned 20 Factory zone layouts 6316 | -9/Scraptown | Learned 8 Research zone layouts 6316 | -9/Scraptown | Learned 4 Mines zone layouts 6316 | -9/Scraptown | Learned 20 Upper Caves zone layouts 6316 | -9/Scraptown | Learned location of 1 exit from Research 6316 | -9/Scraptown | Learned location of 2 exits from Research 6316 | -9/Scraptown | Learned location of 1 exit from Proximity Caves 6332 | -9/Scraptown | Found Deep Structural Scanner 6417 | -9/Scraptown | Visited Junk Repository 6459 | -9/Scraptown | Lost 7 allies 6468 | -9/Scraptown | Visited Derelict Rescue Squad 6483 | -9/Scraptown | Found DRS Beacon 6514 | -9/Scraptown | Found Scrap Suit 6526 | -9/Scraptown | Identified exit to Factory 6611 | -9/Scraptown | Optimus destroyed in the chaos of civil war 6628 | -9/Scraptown | Destroyed by AM-LH8(j) with Overtuned Pulse Rifle Last Messages --------------- Acquired Prototype Ballistic Gun. Identified Enh. Autogun. Y3-CPO(E) suffers critical hit (Burn). Bolt penetrates VY-0LX(E). VY-0LX(E) destroyed. Y3-CPO(E) destroyed. Acquired 20 matter. Slug penetrates Machine. Slug penetrates Wall. Bolt penetrates Wall. Slug penetrates TH-54V(h). ANNOUNCEMENT: The traitor Optimus has been dealt with. Put down any remaining collaborators. 2F-06W(j): "Can we win this? Even if we take Scraptown, they'll hit us from Junction 34." Bolt penetrates Machine. Bolt penetrates Wall. Bolt penetrates Machine. Penetrated by Bolt. EMP Blaster destroyed. Map ----- +----------------------------------------------------+ | ?????????????????????????????????????????????????? | | ?????????????????????????????????????????????????? | | ???????????????????????????????????????? ???????? | | ???????????????????????????????????????? ???????? | | ?????##########????????????????????????? ???????? | | ?????#""""""""#????????????????????????# ???????? | | ?????#" " &! "#????????????????????????# ???????? | | ?????#" "#??????????????????###???# ???????? | | ?????#"" ""#????????????????? ??# %???#### | | ?????#" "#???????????????? ?#*!#??# ## | | ?????#"" ""#??###########??? ?#%=## #X | | ?????#" "#??#![#![]#]]#???? ?#*!## # ### | | ?????#"" ""#??# !# ! # *#???? ?#=[# # #= | | ?????# #??#!!# # #??? ?# #######= | | ?????# ! #??# #???? ??# # ! | | ?????# %! #??# #????? ???# # / | | ?????##### ####??#####j#####?????# #???# *## ####" | | ?????#####="#"######## ########### ##### %## ####" | | ?????#" "" !""""""""= " """""! !=""" ="" "## | | ???? # [*=%! ! %! !%= !%= !%! "## | | ???? " [!=j[! =% [[! = ! * ## | | ???? " !=%[= ![ [*= =%* = !== "## | | ?????# !!* %%=*= [%! =!* [=! % !%* ## | | ??####" !%!%**!= = !%= !%!* =![ | | ?#"""" *!/ ! "" "["""""""""" %%= "## | | ?#"""" [[[= " "" h @ """"""""""""=* ##"" | | ?#""" *%%!! "#####g ################"" #### | | ?#"""" ===! #% ##????????#"" "#### | | ?#"""" !% =#*%[ X"#????????#"" *"#### | | ?#"""" *!* %[ "" "" ##????????#"" ="## | | "#"""" =%!"" "" "" X"#??????###""= !=% ## | | "#"""" *![/"# " " %#####"### #""%!%!! ## | | ###### !% % " !!! !!==[[=!=%!!%% =! | | ?????# " =%* / =*%!%=[%*%![!!=!= "## | | ######% "# [%%! ="#####""# #"!%! %! #### | | = "# ""!%= " #??????###""%!=* "#??? | | % ""# ""= ##????????#"" %=%*"#??? | | ""# X"#????????#" [ #??? | | * "# ##????????#"" "#??? | | !%! ""###### ################"" #### | | *%= == """"""""""""""""""""""""""" "## " | | % !""""""" """""""""""""""""" | | & [==!% ## | | !%!%! ! "# | | [ =*!= * %"## | | #""""#" !!%!=! !! = ## | | #????#" !%[[%*! %] # | | #????#"" " "!""= """"""" """"""""""" """""" ## | | #????#####"# "########## ########### ###### ## | | ??????# "#?# #?# ## ## | +----------------------------------------------------+ Best States ------------- Heat Dissipation 47 Coolant Potential 100 Energy Generation 16 Energy Capacity 290 Matter Stores 300 Matter Capacity 300 Sight Range 21 Terrain Scan Range 16 Terrain Scan Density 10 Armor Coverage 800 Evasion (%) 55 Targeting Accuracy 5 Core Analysis 6 Recoil Reduction 1 Item Schematics ----------------- None Robot Schematics ------------------ None Fabricated ------------ Nothing Repaired ---------- Nothing Studied --------- None Alien Tech Used ----------------- None Achievements -------------- Bob, First Of His Name Civilization 2243 Frankenstein Link The Feds Longdome?! Nice Directions, Buddy Spot Them First Challenges ------------ None Game ------ Seed MomentumImpactRocket Manual? 0 Play Time 01:56:06 Cumulative 74.2 hours Start 2025.12.01 @ 21:43:28 End 2025.12.02 @ 00:46:48 Sessions 1 Manual Loads 0 Difficulty Rogue Special Mode None Game No. 57 Rogue 57 Adventurer 0 Explorer 0 Win Type - Total 0 Types 0/0/0/0/0/0/0/0/0/0 Lore% 36 Gallery% 39 Achievement% 24 Wizard Run 0 Options --------- Layout 1 ASCII 0 Keyboard 0 Movement Mouse Keybinds 0 Fullscreen 1 Font 32/SmallcapsGlow Map View 50x40 Zoom Use 0% Tactical HUD 0 Map Filters NONE Filters NONE Steam 1 RUN: 8e957141-082b-49bb-8dd5-c9a22c00ff34